Workbook

Sheet PECCD All
A1: STATE OF FLORIDA DEPARTMENT OF TRANSPORTATION | AK1: =TEXT(P4,"yyyymmdd")&"_"&LEFT(C7,8)&"_SR "&I9&"_"&I8 -> 20240321_444612-1_SR 45_13010000
A2: PAVEMENT EVALUATION CORING AND CONDITION DATA
A4: Cored By: | C4: Ardaman & Associates, Inc. | L4: Coring Completion Date: | P4: 2024-03-21 | W4: Typical Section: | Z4: 1
A6: W.P.I. No.: | L6: Name: | P6: SR 45 (US 41) | X6: Lanes: | Z6: 6
A7: Fin. Proj. ID: | C7: 444612-1-31-01 | L7: From: | P7: EDWARDS DRIVE | X7: Shoulder Type and Condition:
A8: F.A. Project No.: | G8: Roadway ID: | I8: 13010000 | L8: To: | P8: MAGELLAN DRIVE | X8: Inside: | Z8: None
A9: County: | C9: Manatee | G9: SR No.: | I9: 45 | L9: Beg MP: | P9: 0 | R9: End MP: | S9: 2.095 | U9: Length: | V9: =S9-P9 -> 2.095 | X9: Outside: | Z9: Paved / Curb
A10: Overall Pavement Condition (from DMO field review): | H10: Fair | L10: Median Curbed (Y/N): | P10: N | Q10: Paved | S10: Lawn | U10: Other: | X10: Curb & Gutter (Y/N): | AA10: Y
A12: All Cores
F13: PAVEMENT LAYER (IN.) | Q13: BASE | V13: CRACK
A14: CORE NO. | B14: MILE POST2 | C14: LANE TYPE | D14: LANE | E14: WP (Y/N) | F14: FC9.5 | G14: FC5 | H14: FC3 | I14: S | J14: SP1C | K14: S | L14: SAHM | M14: BIND | P14: TOTAL ASPHALT THICKNESS (IN.) | Q14: LR | R14: CONC | S14: ABC-2 | T14: SHEL | U14: STABILIZED SUBGRADE 3 | V14: DEPTH (IN.) | W14: TYPE | X14: CLASS | Y14: EXTENT | Z14: PAVEMENT CONDITION | AA14: RUT DEPTH - LWP (IN.) | AB14: RUT DEPTH - RWP (IN.) | AC14: CROSS SLOPE (%)4 | AD14: COMMENTS
A15: 1 | B15: 0.705 | C15: ML | D15: R1 | E15: N | G15: 1 | J15: 1.2 | K15: 1.6 | M15: 1.7 | P15: =IF(A15="","",SUM(F15:O15)) -> 5.5 | Q15: 6.9 | U15: 12 | V15: 3.2 | W15: C | X15: III | Y15: S | Z15: P | AA15: 0.2 | AB15: 0.2 | AC15: 2.2
A16: 2 | B16: 1.635 | C16: ML | D16: R1 | E16: N | G16: 0.8 | J16: 1.1 | K16: 1.6 | M16: 0.8 | P16: 4.3 | Q16: 7.6 | U16: 12 | V16: 4.3 | W16: C | X16: III | Y16: S | Z16: P | AA16: 0.3 | AB16: 0.4 | AC16: 3.7 | AD16: Base is half LR half ABC-2
A17: 3 | B17: 0.06 | C17: ML | D17: R2 | E17: N | G17: 0.8 | J17: 1.1 | K17: 0.9 | M17: 1.2 | P17: 4 | Q17: 8.7 | U17: 12 | V17: 2.8 | W17: C | X17: III | Y17: M | Z17: P | AA17: 0.1 | AB17: 0.1 | AC17: 3.1
A18: 4 | B18: 1.052 | C18: ML | D18: R2 | E18: N | G18: 1 | J18: 1.2 | K18: 1.3 | M18: 0.9 | P18: 4.4 | Q18: 9 | U18: 12 | V18: 3.4 | W18: C | X18: III | Y18: S | Z18: P | AA18: 0.3 | AB18: 0.3 | AC18: 3.1
A19: 5 | B19: 0.028 | C19: ML | D19: R3 | E19: Y | G19: 0.8 | J19: 1.6 | K19: 0.8 | M19: 0.7 | P19: 3.9 | Q19: 7.1 | U19: 12 | V19: 3.2 | W19: C | X19: III | Y19: S | Z19: P | AA19: 0.2 | AB19: 0.2 | AC19: 4.6
A20: 6 | B20: 1.66 | C20: ML | D20: R3 | E20: Y | G20: 1 | J20: 1.5 | K20: 1.1 | M20: 0.9 | P20: 4.5 | Q20: 8.5 | U20: 12 | V20: 4.5 | W20: C | X20: III | Y20: S | Z20: P | AA20: 0.2 | AB20: 0.2 | AC20: 3.9
A21: 7 | B21: 0.195 | C21: ML | D21: L1 | E21: N | G21: 0.9 | J21: 1.6 | K21: 2.5 | P21: 5 | S21: 4 | U21: 12 | V21: 3.8 | W21: C | X21: III | Y21: S | Z21: P | AA21: 0.3 | AB21: 0.1 | AC21: 2.6
A22: 8 | B22: 1.896 | C22: ML | D22: L1 | E22: N | G22: 1 | J22: 1.6 | K22: 1.2 | M22: 1 | P22: 4.8 | Q22: 9.1 | U22: 12 | V22: 4.8 | W22: B | X22: III | Y22: S | Z22: P | AA22: 0.2 | AB22: 0.3 | AC22: 2 | AD22: Base is half LR half CONC
A23: 9 | B23: 0.297 | C23: ML | D23: L2 | E23: Y | G23: 0.8 | J23: 1.6 | K23: 1.3 | M23: 0.9 | P23: 4.6 | Q23: 7.8 | U23: 12 | V23: 4.6 | W23: C | X23: III | Y23: S | Z23: P | AA23: 0.3 | AB23: 0.4 | AC23: 3
A24: 10 | B24: 1.829 | C24: ML | D24: L2 | E24: Y | G24: 0.8 | J24: 1.5 | K24: 1.5 | M24: 1.2 | P24: 5 | Q24: 7.4 | U24: 12 | V24: 4.2 | W24: C | X24: III | Y24: S | Z24: P | AA24: 0.3 | AB24: 0.2 | AC24: 3.4
A25: 11 | B25: 0.746 | C25: ML | D25: L3 | E25: Y | G25: 0.7 | J25: 1.6 | K25: 0.8 | M25: 0.9 | P25: 4 | Q25: 8.6 | U25: 12 | V25: 4 | W25: B | X25: III | Y25: S | Z25: P | AA25: 0.3 | AB25: 0.1 | AC25: 4.5
A26: 12 | B26: 1.954 | C26: ML | D26: L3 | E26: N | G26: 1 | J26: 1.5 | K26: 0.6 | M26: 1.3 | P26: 4.4 | Q26: 7.3 | U26: 12 | V26: 3.8 | W26: C | X26: II | Y26: L | Z26: P | AA26: 0.2 | AB26: 0.2 | AC26: 5.1
A27: 13 | B27: 0.028 | C27: ML | D27: R3 | E27: N | G27: 0.8 | J27: 1.5 | K27: 0.7 | M27: 0.6 | P27: 3.6 | Q27: 7.3 | U27: 12 | Z27: P | AA27: 0.2 | AB27: 0.2 | AC27: 4.6
A28: 1 | B28: 0.01 | C28: ML | D28: R3 | E28: Y | F28: 0.9 | J28: 1 | K28: 1.2 | P28: =IF(A28="","",SUM(F28:O28)) -> 3.1 | Q28: 12 | V28: 2.7 | W28: C | X28: 2 | Y28: S | Z28: P | AA28: 0.1 | AB28: 0.1 | AC28: 3.9
A29: 2 | B29: 0.01 | C29: ML | D29: L3 | E29: Y | F29: 1.4 | J29: 1.3 | M29: 1.3 | P29: 4 | Q29: 11.5 | V29: 2.2 | W29: C | X29: 3 | Y29: S | Z29: P | AA29: 0.1 | AB29: 0.1 | AC29: 2.9
A30: 3 | B30: 0.04 | C30: ML | D30: R3 | E30: Y | G30: 0.7 | J30: 2.6 | M30: 0.7 | P30: 4 | Q30: 17.5 | V30: 2.8 | W30: C | X30: 3 | Y30: M | Z30: F | AA30: 0.1 | AB30: 0.1 | AC30: 5.3
A31: 4 | B31: 0.707 | C31: ML | D31: R3 | E31: Y | G31: 0.6 | J31: 1.8 | M31: 0.6 | P31: 3 | Q31: 10.5 | V31: 3 | W31: C | X31: 3 | Y31: S | Z31: P | AA31: 0.1 | AB31: 0.3 | AC31: 5 | AD31: Base Crack
A32: 5 | B32: 1.194 | C32: ML | D32: R3 | E32: Y | G32: 0.9 | J32: 1.6 | M32: 1.4 | P32: 3.9 | Q32: 11.5 | U32: 12.5 | V32: --- | W32: --- | X32: --- | Y32: --- | Z32: F | AA32: 0.1 | AB32: 0.1 | AC32: 4.1
A33: 6 | B33: 1.652 | C33: ML | D33: R3 | E33: Y | G33: 1.1 | J33: 1.8 | M33: 1.6 | P33: 4.5 | Q33: 11 | V33: --- | W33: --- | X33: --- | Y33: --- | Z33: F | AA33: 0.2 | AB33: 0.1 | AC33: 4.1
A34: 7 | B34: 2.086 | C34: ML | D34: R2 | E34: N | G34: 0.5 | J34: 1.3 | M34: 1.8 | P34: 3.6 | U34: 11.8 | V34: 1.75 | W34: C | X34: 3 | Y34: S | Z34: P | AA34: 0.1 | AB34: 0.1 | AC34: 2.8 | AD34: Bridge Approach slab
A35: 8 | B35: 2.086 | C35: ML | D35: L2 | E35: N | G35: 0.9 | J35: 1.1 | P35: 2 | V35: --- | W35: --- | X35: --- | Y35: --- | Z35: F | AA35: 0.1 | AB35: 0.1 | AC35: 1.5 | AD35: Bridge Approach slab
A36: 9 | B36: 1.953 | C36: ML | D36: L3 | E36: N | G36: 0.9 | J36: 2.3 | M36: 1.2 | P36: 4.4 | Q36: 11.25 | V36: 0.9 | W36: C | X36: 2 | Y36: M | Z36: F | AA36: 0.1 | AB36: 0.1 | AC36: 5.5
A37: 10 | B37: 1.288 | C37: ML | D37: L3 | E37: Y | G37: 0.9 | J37: 1.8 | M37: 0.7 | P37: 3.4 | Q37: 11.5 | V37: 3.4 | W37: C | X37: 3 | Y37: S | Z37: P | AA37: 0.2 | AB37: 0.1 | AC37: 4.3 | AD37: Base Crack
A38: 11 | B38: 0.987 | C38: ML | D38: L3 | E38: Y | G38: 0.8 | J38: 2.5 | M38: 1.2 | P38: 4.5 | Q38: 12.25 | V38: 4.5 | W38: C | X38: 3 | Y38: S | Z38: P | AA38: 0.1 | AB38: 0 | AC38: 5.1 | AD38: Base Crack
A39: 12 | B39: 0.392 | C39: ML | D39: L3 | E39: Y | G39: 1 | J39: 1.5 | M39: 0.8 | P39: 3.3 | Q39: 9.5 | U39: 12.2 | V39: --- | W39: --- | X39: --- | Y39: --- | Z39: F | AA39: 0.1 | AB39: 0.1 | AC39: 3.3
A40: 13 | B40: 0.07 | C40: ML | D40: R2 | E40: N | G40: 0.7 | J40: 2.5 | M40: 0.9 | P40: 4.1 | Q40: 8.2 | V40: 3 | W40: C | X40: 2 | Y40: M | Z40: P | AA40: 0.2 | AB40: 0 | AC40: 3.3 | AD40: Raveling
A41: 14 | B41: 0.502 | C41: ML | D41: R2 | E41: Y | G41: 1 | J41: 2.3 | M41: 1.2 | P41: =IF(A41="","",SUM(F41:O41)) -> 4.5 | Q41: 7.5 | V41: --- | W41: --- | X41: --- | Y41: --- | Z41: F | AA41: 0.1 | AB41: 0.1 | AC41: 3.6 | AD41: Raveling
A42: 15 | B42: 1.053 | C42: ML | D42: R2 | E42: N | G42: 0.9 | J42: 2.4 | M42: 1.1 | P42: 4.4 | Q42: 11.5 | V42: 2 | W42: C | X42: 3 | Y42: S | Z42: P | AA42: 0.1 | AB42: 0.1 | AC42: 3.4
A43: 16 | B43: 1.851 | C43: ML | D43: R2 | E43: N | G43: 0.9 | J43: 2.6 | M43: 1.6 | P43: 5.1 | Q43: 7.4 | V43: 5.1 | W43: C | X43: 3 | Y43: S | Z43: P | AA43: 0.3 | AB43: 0.1 | AC43: 3.1 | AD43: Joint crack/Raveling/Base crack
A44: 17 | B44: 1.83 | C44: ML | D44: L2 | E44: Y | G44: 0.8 | J44: 2.9 | M44: 1.3 | P44: 5 | Q44: 8.1 | V44: 3.8 | W44: C | X44: 3 | Y44: S | Z44: P | AA44: 0.2 | AB44: 0.1 | AC44: 3.2
A45: 18 | B45: 1.417 | C45: ML | D45: L2 | E45: N | G45: 1 | J45: 3 | M45: 1 | P45: 5 | Q45: 8.4 | V45: 5 | W45: C | X45: 3 | Y45: S | Z45: P | AA45: 0.4 | AB45: 0.1 | AC45: 3.3 | AD45: Base Crack
A46: 19 | B46: 0.605 | C46: ML | D46: L2 | E46: N | G46: 0.8 | J46: 2.3 | M46: 1.4 | P46: 4.5 | Q46: 9 | V46: --- | W46: --- | X46: --- | Y46: --- | Z46: F | AA46: 0.3 | AB46: 0.3 | AC46: 3
A47: 20 | B47: 0.308 | C47: ML | D47: L2 | E47: Y | G47: 0.9 | J47: 2.8 | M47: 1 | P47: 4.7 | Q47: 10.2 | V47: 2.4 | W47: C | X47: 3 | Y47: S | Z47: P | AA47: 0.2 | AB47: 0.3 | AC47: 3.3
A48: 21 | B48: 0.285 | C48: ML | D48: R1 | E48: N | G48: 1 | J48: 3.1 | K48: 0.6 | P48: 4.7 | Q48: 12.8 | U48: 11.5 | V48: 4.7 | W48: C | X48: 3 | Y48: S | Z48: P | AA48: 0 | AB48: 0.3 | AC48: 3 | AD48: Base crack
A49: 22 | B49: 0.705 | C49: ML | D49: R1 | E49: N | G49: 1.1 | J49: 2.9 | M49: 1.5 | P49: 5.5 | Q49: 8.6 | V49: 2.1 | W49: C | X49: 3 | Y49: S | Z49: P | AA49: 0.1 | AB49: 0.1 | AC49: 1.4 | AD49: Raveling
A50: 23 | B50: 1.104 | C50: ML | D50: R1 | E50: Y | G50: 0.8 | J50: 3.7 | P50: 4.5 | S50: 4.7 | V50: --- | W50: --- | X50: --- | Y50: --- | Z50: P | AA50: 0.3 | AB50: 0.2 | AC50: 4.4
A51: 24 | B51: 1.81 | C51: ML | D51: R1 | E51: Y | G51: 0.8 | J51: 3.4 | P51: 4.2 | S51: 3.1 | V51: --- | W51: --- | X51: --- | Y51: --- | Z51: P | AA51: 0.3 | AB51: 0.1 | AC51: 3.6 | AD51: Raveling
A52: 25 | B52: 2.011 | C52: ML | D52: L1 | E52: Y | G52: 0.9 | J52: 1.3 | K52: 4.4 | P52: 6.6 | T52: 8.3 | U52: 11.7 | V52: --- | W52: --- | X52: --- | Y52: --- | Z52: F | AA52: 0.1 | AB52: 0.1 | AC52: 2.6
A53: 26 | B53: 1.459 | C53: ML | D53: L1 | E53: Y | G53: 0.9 | J53: 2.1 | K53: 4.5 | P53: 7.5 | Q53: 10.1 | V53: --- | W53: --- | X53: --- | Y53: --- | Z53: P | AA53: 0.1 | AB53: 0.1 | AC53: 3.1 | AD53: Raveling, BOT of core broke of during extraction
A54: 27 | B54: 0.835 | C54: ML | D54: L1 | E54: Y | G54: 0.8 | J54: 1.8 | K54: 1.6 | P54: 4.2 | Q54: 9.75 | V54: 5.1 | W54: C | X54: 3 | Y54: S | Z54: P | AA54: 0.1 | AB54: 0.1 | AC54: 3.4
A55: 28 | B55: 0.2 | C55: ML | D55: L1 | E55: N | G55: 0.9 | J55: 2.2 | K55: 0.4 | P55: 3.5 | S55: 5.3 | V55: 2.3 | W55: C | X55: 3 | Y55: S | Z55: P | AA55: 0.3 | AB55: 0.2 | AC55: 2.9
A56: 29 | B56: 1.48 | C56: ML | D56: R2 | E56: N | G56: 1.1 | J56: 1.9 | K56: 0.6 | M56: 1.7 | P56: 5.3 | Q56: 7.75 | V56: 5.25 | W56: C | X56: 3 | Y56: S | Z56: P | AA56: 0.1 | AB56: 0.1 | AC56: 2.7 | AD56: Joint crack/Raveling/Base crack
A57: 30 | B57: 0.542 | C57: TL/CO | D57: R1 | E57: Y | G57: 1.1 | J57: 1.7 | K57: 1.7 | P57: 4.5 | S57: 3 | V57: --- | W57: --- | X57: --- | Y57: --- | Z57: F | AA57: 0 | AB57: 0 | AC57: 2..4
A58: 31 | B58: 0.563 | C58: SS | D58: R1 | E58: N | G58: 1 | J58: 1.5 | P58: 2.5 | Q58: 11 | V58: --- | W58: --- | X58: --- | Y58: --- | Z58: F | AA58: 0 | AB58: 0 | AC58: 0.5 | AD58: Braden Ave
A59: 32 | B59: 0.646 | C59: SS | D59: R1 | E59: N | G59: 0.5 | J59: 2 | P59: 2.5 | T59: 12 | V59: --- | W59: --- | X59: --- | Y59: --- | Z59: F | AA59: 0 | AB59: 0.1 | AC59: 0.3 | AD59: Hernando Ave
A60: 33 | B60: 0.736 | C60: SS | D60: R1 | E60: N | G60: 0.9 | J60: 3.1 | P60: 4 | T60: 11.8 | V60: --- | W60: --- | X60: --- | Y60: --- | Z60: F | AA60: 0.2 | AB60: 0.2 | AC60: 0.3 | AD60: Suwanee Ave
A61: 34 | B61: 0.835 | C61: SS | D61: R1 | E61: N | G61: 1 | J61: 1.8 | K61: 0.8 | P61: 3.6 | Q61: 13.5 | V61: --- | W61: --- | X61: --- | Y61: --- | Z61: F | AA61: 0.1 | AB61: 0 | AC61: 0.9 | AD61: Pinehurst St, Raveling
A62: 35 | B62: 1.253 | C62: SS | D62: L1 | E62: Y | G62: 0.8 | J62: 1.7 | M62: 0.8 | P62: 3.3 | Q62: 12.2 | V62: --- | W62: --- | X62: --- | Y62: --- | Z62: F | AA62: 0 | AB62: 0 | AC62: 0.7 | AD62: Ponce de Leon, Raveling
A63: 36 | B63: 1.357 | C63: TL/CO | D63: R1 | E63: Y | G63: 1.1 | J63: 1.4 | K63: 1.5 | P63: 4 | S63: 4.1 | U63: 12.7 | V63: --- | W63: --- | X63: --- | Y63: --- | Z63: F | AA63: 0 | AB63: 0.4 | AC63: 2.8
A64: 37 | B64: 1.378 | C64: SS | D64: L1 | E64: N | H64: 0.5 | I64: 3.2 | P64: 3.7 | Q64: 6.5 | V64: 3.7 | W64: C | X64: 3 | Y64: M | Z64: P | AA64: 0.5 | AB64: 0.6 | AC64: 0.5 | AD64: Tallevast St
A65: 38 | B65: 1.55 | C65: TL/CO | D65: R1 | E65: Y | G65: 0.4 | J65: 2.2 | K65: 2.5 | P65: 5.1 | S65: 3.5 | V65: --- | W65: --- | X65: --- | Y65: --- | Z65: P | AA65: 0.4 | AB65: 0.4 | AC65: 1.4 | AD65: Raveling Completely
A66: 39 | B66: 1.57 | C66: SS | D66: R1 | E66: N | H66: 0.8 | I66: 0.8 | L66: 1.3 | P66: 2.9 | Q66: 9.5 | V66: --- | W66: --- | X66: --- | Y66: --- | Z66: F | AA66: 0.1 | AB66: 0.1 | AC66: 1.7 | AD66: 69th Ave
A67: 40 | B67: 1.72 | C67: TL/CO | D67: R1 | E67: Y | G67: 1 | J67: 2.3 | P67: 3.3 | S67: 5.8 | V67: 0.5 | W67: C | X67: 3 | Y67: S | Z67: P | AA67: 0.3 | AB67: 0 | AC67: 2.4
A68: 41 | B68: 1.73 | C68: SS | D68: L1 | E68: N | F68: 2 | P68: 2 | Q68: 10.2 | V68: --- | W68: --- | X68: --- | Y68: --- | Z68: G | AA68: 0 | AB68: 0 | AC68: 1.6 | AD68: Pearl St, Left turn lane
A69: 42 | B69: 1.881 | C69: SS | D69: R1 | E69: N | G69: 0.7 | I69: 3.5 | P69: 4.2 | Q69: 9.75 | V69: 4.2 | W69: C | X69: 3 | Y69: M | Z69: F | AA69: 0.1 | AB69: 0.1 | AC69: 3.1 | AD69: Montgomery Ave, Raveling
A70: 43 | B70: 1.95 | C70: TL/CO | D70: R1 | E70: Y | G70: 0.8 | J70: 1.6 | K70: 3.4 | P70: 5.8 | T70: 14.75 | V70: 3.2 | W70: C | X70: 3 | Y70: M | Z70: F | AA70: 0.1 | AB70: 0.3 | AC70: 2.2
A71: 44 | B71: 2.036 | C71: TL/CO | D71: R1 | E71: N | G71: 1 | J71: 1.5 | K71: 5.1 | P71: 7.6 | T71: 12.5 | V71: --- | W71: --- | X71: --- | Y71: --- | Z71: F | AA71: 0.1 | AB71: 0 | AC71: 1.4
A72: 45 | B72: 2.058 | C72: SS | D72: R1 | E72: N | H72: 0.5 | I72: 3.4 | P72: 3.9 | Q72: 10.1 | V72: --- | W72: --- | X72: --- | Y72: --- | Z72: F | AA72: 0.1 | AB72: 0.1 | AC72: 1.9 | AD72: Magellan Dr, Raveling
A73: 46 | B73: 2.069 | C73: TL/CO | D73: L1 | E73: N | G73: 0.6 | J73: 2 | K73: 3.7 | P73: 6.3 | T73: 17 | U73: 12.3 | V73: --- | W73: --- | X73: --- | Y73: --- | Z73: F | AA73: 0.1 | AB73: 0.1 | AC73: 2.6
A74: 47 | B74: 1.982 | C74: TL/CO | D74: L1 | E74: N | G74: 0.9 | J74: 1.9 | K74: 4.2 | P74: 7 | T74: 18 | V74: --- | W74: --- | X74: --- | Y74: --- | Z74: F | AA74: 0.1 | AB74: 0.1 | AC74: 2.8
A75: 48 | B75: 1.883 | C75: TL/CO | D75: L1 | E75: N | G75: 0.9 | J75: 2.1 | K75: 1.8 | M75: 2.6 | P75: 7.4 | T75: 12.5 | V75: 0.75 | W75: C | X75: 2 | Y75: M | Z75: F | AA75: 0 | AB75: 0 | AC75: 2.9
A76: 49 | B76: 1.751 | C76: TL/CO | D76: L1 | E76: N | G76: 1 | J76: 3.1 | P76: 4.1 | S76: 4.7 | V76: 2.2 | W76: C | X76: 3 | Y76: M | Z76: P | AA76: 0 | AB76: 0.1 | AC76: 2.1
A77: 50 | B77: 1.73 | C77: SS | D77: R1 | E77: N | F77: 1.4 | J77: 1.4 | P77: 2.8 | Q77: 11 | V77: --- | W77: --- | X77: --- | Y77: --- | Z77: F | AA77: 0.1 | AB77: 0.1 | AC77: 1.5 | AD77: Pearl st (west)
A78: 51 | B78: 1.59 | C78: TL/CO | D78: L1 | E78: Y | G78: 0.9 | I78: 3.6 | P78: 4.5 | S78: 4.2 | V78: --- | W78: --- | X78: --- | Y78: --- | Z78: F | AA78: 0.1 | AB78: 0.1 | AC78: 2.1
A79: 52 | B79: 1.57 | C79: SS | D79: R1 | E79: N | G79: 1 | J79: 1.7 | L79: 1.2 | P79: =IF(A79="","",SUM(F79:O79)) -> 3.9 | Q79: 9.4 | V79: 3.9 | W79: C | X79: 3 | Y79: M | Z79: P | AA79: 0.1 | AB79: 0 | AC79: 2.3 | AD79: Whitfield (west), Raveling
A80: 53 | B80: 1.399 | C80: TL/CO | D80: L1 | E80: Y | G80: 0.8 | J80: 1.6 | K80: 1.3 | P80: 3.7 | S80: 6.8 | V80: --- | W80: --- | X80: --- | Y80: --- | Z80: P | AA80: 0.1 | AB80: 0.2 | AC80: 3.3
A81: 54 | B81: 1.378 | C81: SS | D81: R1 | E81: Y | G81: 0.8 | J81: 2.3 | L81: 1.4 | P81: 4.5 | Q81: 9.5 | V81: --- | W81: --- | X81: --- | Y81: --- | Z81: F | AA81: 0 | AB81: 0 | AC81: 2.8 | AD81: Gaines (west) top of core damaged retrieving
A82: 55 | B82: 1.104 | C82: SS | D82: L1 | E82: N | G82: 0.9 | J82: 1.3 | M82: 2.7 | P82: 4.9 | Q82: 12.8 | U82: 11.2 | V82: --- | W82: --- | X82: --- | Y82: --- | Z82: F | AA82: 0 | AB82: 0.1 | AC82: 0.7 | AD82: Westmoreland (west)
A83: 56 | B83: 1.083 | C83: SS | D83: R1 | E83: N | H83: 0.8 | I83: 1.9 | P83: 2.7 | Q83: 11.5 | V83: --- | W83: --- | X83: --- | Y83: --- | Z83: F | AA83: 0 | AB83: 0.1 | AC83: 1.4 | AD83: Westmoreland (west)
A84: 57 | B84: 1.023 | C84: SS | D84: L1 | E84: N | G84: 2.5 | I84: 1.5 | P84: 4 | Q84: 9.7 | V84: --- | W84: --- | X84: --- | Y84: --- | Z84: F | AA84: 0.1 | AB84: 0.2 | AC84: 1.4 | AD84: Scott Ave (west), Raveling
A85: 58 | B85: 0.935 | C85: SS | D85: R1 | E85: N | G85: 0.8 | J85: 1.5 | M85: 0.7 | P85: 3 | Q85: 9.5 | V85: --- | W85: --- | X85: --- | Y85: --- | Z85: F | AA85: 0 | AB85: 0 | AC85: 0.5 | AD85: Benard Ave (west)
A86: 59 | B86: 0.835 | C86: SS | D86: L1 | E86: N | G86: 1 | J86: 2.6 | P86: 3.6 | Q86: 10.2 | V86: --- | W86: --- | X86: --- | Y86: --- | Z86: F | AA86: 0 | AB86: 0.1 | AC86: 1 | AD86: Somerset (west), Raveling
A87: 60 | B87: 0.736 | C87: SS | D87: L1 | E87: N | G87: 0.9 | J87: 1.7 | M87: 1.7 | P87: 4.3 | Q87: 9.3 | V87: 2.6 | W87: C | X87: 3 | Y87: S | Z87: P | AA87: 0 | AB87: 0 | AC87: 1.2 | AD87: Suwanee Ave (west), Raveling
A88: 61 | B88: 0.646 | C88: SS | D88: L1 | E88: Y | G88: 0.9 | J88: 2 | M88: 1 | P88: 3.9 | Q88: 9.5 | V88: --- | W88: --- | X88: --- | Y88: --- | Z88: P | AA88: 0.1 | AB88: 0.3 | AC88: 1.8 | AD88: Hernando (west), Raveling
A89: 62 | B89: 0.585 | C89: TL/CO | D89: L1 | E89: N | G89: 0.8 | J89: 1.9 | K89: 0.8 | M89: 2 | P89: 5.5 | Q89: 9 | V89: 5.5 | W89: C | X89: 3 | Y89: S | Z89: P | AA89: 0 | AB89: 0 | AC89: 2.3 | AD89: Base Crack
A90: 63 | B90: 0.563 | C90: SS | D90: L1 | E90: N | G90: 0.9 | J90: 1.9 | K90: 2.5 | P90: 5.3 | T90: 10.3 | V90: --- | W90: --- | X90: --- | Y90: --- | Z90: F | AA90: 0.1 | AB90: 0.1 | AC90: 1.8 | AD90: Braden Ave
A91: 64 | B91: 0.329 | C91: TL/CO | D91: L3 | E91: N | G91: 0.6 | J91: 1.8 | K91: 7.4 | P91: 9.8 | Q91: 13.5 | V91: --- | W91: --- | X91: --- | Y91: --- | Z91: F | AA91: 0 | AB91: 0 | AC91: 1.5
A92: 65 | B92: 0.246 | C92: TL/CO | D92: L3 | E92: Y | G92: 0.9 | I92: 3.7 | P92: 4.6 | V92: --- | W92: --- | X92: --- | Y92: --- | Z92: F | AA92: 0 | AB92: 0.1 | AC92: 2
A93: 66 | B93: 0.17 | C93: TL/CO | D93: L3 | E93: Y | G93: 1 | J93: 3 | K93: 1.3 | P93: 5.3 | S93: 10.3 | V93: --- | W93: --- | X93: --- | Y93: --- | Z93: F | AA93: 0.1 | AB93: 0.1 | AC93: 2
A94: 67 | B94: 0.15 | C94: SS | D94: L1 | E94: N | G94: 0.6 | J94: 1.3 | K94: 2 | P94: 3.9 | S94: 10.6 | V94: --- | W94: --- | X94: --- | Y94: --- | Z94: F | AA94: 0.2 | AB94: 0.1 | AC94: 0.6 | AD94: Seagate, Raveling
A95: 68 | B95: 0 | C95: SS | D95: L1 | E95: Y | G95: 1.2 | I95: 2.9 | P95: 4.1 | Q95: 12 | V95: --- | W95: --- | X95: --- | Y95: --- | Z95: F | AA95: 0.1 | AB95: 0.1 | AC95: 1.1 | AD95: Edwards Dr., Core sheared off and broke apart
A96: 69 | B96: 0.09 | C96: TL/CO | D96: L1 | E96: Y | G96: 0.8 | J96: 1.2 | K96: 1.9 | P96: 3.9 | S96: 4.6 | V96: --- | W96: --- | X96: --- | Y96: --- | Z96: F | AA96: 0 | AB96: 0.1 | AC96: 2.8
A97: 70 | B97: 0.374 | C97: TL/CO | D97: L1 | E97: N | G97: 1.1 | I97: 2.4 | P97: 3.5 | S97: 4.1 | U97: 12.5 | V97: --- | W97: --- | X97: --- | Y97: --- | Z97: F | AA97: 0 | AB97: 0 | AC97: 2.2
A98: 71 | B98: 0.987 | C98: TL/CO | D98: L1 | E98: N | G98: 1.1 | J98: 2 | K98: 1 | P98: 4.1 | S98: 4.5 | V98: 1.1 | W98: C | X98: 3 | Y98: M | Z98: P | AA98: 0.1 | AB98: 0.1 | AC98: 2.9
A99: 72 | B99: 1.65 | C99: TL/CO | D99: L1 | E99: Y | G99: 0.9 | J99: 1.5 | K99: 2.3 | P99: 4.7 | S99: 5.8 | V99: --- | W99: --- | X99: --- | Y99: --- | Z99: F | AA99: 0 | AB99: 0.1 | AC99: 0.5
A100: 73 | B100: 1.881 | C100: TL/CO | D100: L1 | E100: N | G100: 1.5 | J100: 1.5 | K100: 1.1 | M100: 1.7 | P100: 5.8 | R100: 7.7 | V100: --- | W100: --- | X100: --- | Y100: --- | Z100: F | AA100: 0 | AB100: 0.1 | AC100: 2 | AD100: Concrete Base
A101: 74 | B101: 1.962 | C101: TL/CO | D101: L1 | E101: N | G101: 0.9 | J101: 1.6 | K101: 3 | P101: 5.5 | T101: 17 | V101: --- | W101: --- | X101: --- | Y101: --- | Z101: F | AA101: 0.1 | AB101: 0.1 | AC101: 1.5
A102: 75 | B102: 2.058 | C102: TL/CO | D102: L1 | E102: N | G102: 0.3 | J102: 1.5 | K102: 3.7 | P102: 5.5 | T102: 17.5 | V102: --- | W102: --- | X102: --- | Y102: --- | Z102: F | AA102: 0 | AB102: 0.2 | AC102: 0.7
A103: 76 | B103: 1.991 | C103: ML | D103: R1 | E103: N | G103: 0.8 | J103: 1.8 | K103: 0.9 | M103: 1.5 | P103: 5 | T103: 9 | V103: 2.4 | W103: C | X103: 3 | Y103: M | Z103: P | AA103: 0.1 | AB103: 0.2 | AC103: 2.8 | AD103: Raveling
A104: 77 | B104: 1.88 | C104: ML | D104: L3 | E104: Y | G104: 0.9 | J104: 2.4 | M104: 1 | P104: 4.3 | Q104: 12 | V104: 4.3 | W104: C | X104: 3 | Y104: S | Z104: P | AA104: 0.2 | AB104: 0.2 | AC104: 3.8 | AD104: Base Crack
A105: 78 | B105: 0.15 | C105: S | D105: OR | E105: N | G105: 1 | J105: 1.5 | M105: 1.4 | P105: 3.9 | Q105: 13.25 | V105: --- | W105: --- | X105: --- | Y105: --- | Z105: F | AA105: --- | AB105: --- | AC105: 4.3
A106: 79 | B106: 0.51 | C106: S | D106: OL | E106: N | G106: 1 | J106: 1.4 | M106: 1.5 | P106: 3.9 | Q106: 12 | V106: --- | W106: --- | X106: --- | Y106: --- | Z106: F | AA106: --- | AB106: --- | AC106: 3.7
A107: 80 | B107: 1.194 | C107: S | D107: OR | E107: N | G107: 1 | J107: 1.5 | M107: 1.4 | P107: 3.9 | Q107: 11.25 | V107: --- | W107: --- | X107: --- | Y107: --- | Z107: F | AA107: --- | AB107: --- | AC107: 3.7
A108: 81 | B108: 1.76 | C108: S | D108: OL | E108: N | G108: 1.1 | J108: 1.2 | K108: 1.1 | P108: 3.4 | Q108: 11.5 | V108: --- | W108: --- | X108: --- | Y108: --- | Z108: F | AA108: --- | AB108: --- | AC108: 5
P143: =IF(A143="","",SUM(F143:O143)) -> 
P207: =IF(A207="","",SUM(F207:O207)) -> 
A250: AVERAGE | F250: =IF(SUBTOTAL(2,'PECCD All'!F$15:F$248)=0,"",SUBTOTAL(1,'PECCD All'!F$15:F$248)) -> 1.425 | G250: =IF(SUBTOTAL(2,'PECCD All'!G$15:G$248)=0,"",SUBTOTAL(1,'PECCD All'!G$15:G$248)) -> 0.9023255814 | H250: =IF(SUBTOTAL(2,'PECCD All'!H$15:H$248)=0,"",SUBTOTAL(1,'PECCD All'!H$15:H$248)) -> 0.65 | I250: =IF(SUBTOTAL(2,'PECCD All'!I$15:I$248)=0,"",SUBTOTAL(1,'PECCD All'!I$15:I$248)) -> 2.69 | J250: =IF(SUBTOTAL(2,'PECCD All'!J$15:J$248)=0,"",SUBTOTAL(1,'PECCD All'!J$15:J$248)) -> 1.896385542 | K250: =IF(SUBTOTAL(2,'PECCD All'!K$15:K$248)=0,"",SUBTOTAL(1,'PECCD All'!K$15:K$248)) -> 1.958139535 | L250: =IF(SUBTOTAL(2,'PECCD All'!L$15:L$248)=0,"",SUBTOTAL(1,'PECCD All'!L$15:L$248)) -> 1.3 | M250: =IF(SUBTOTAL(2,'PECCD All'!M$15:M$248)=0,"",SUBTOTAL(1,'PECCD All'!M$15:M$248)) -> 1.246666667 | N250: =IF(SUBTOTAL(2,'PECCD All'!N$15:N$248)=0,"",SUBTOTAL(1,'PECCD All'!N$15:N$248)) ->  | O250: =IF(SUBTOTAL(2,'PECCD All'!O$15:O$248)=0,"",SUBTOTAL(1,'PECCD All'!O$15:O$248)) ->  | P250: =IF(SUBTOTAL(2,'PECCD All'!P$15:P$248)=0,"",SUBTOTAL(1,'PECCD All'!P$15:P$248)) -> 4.408510638 | Q250: =IF(SUBTOTAL(2,'PECCD All'!Q$15:Q$248)=0,"",SUBTOTAL(1,'PECCD All'!Q$15:Q$248)) -> 10.04508197 | R250: =IF(SUBTOTAL(2,'PECCD All'!R$15:R$248)=0,"",SUBTOTAL(1,'PECCD All'!R$15:R$248)) -> 7.7 | S250: =IF(SUBTOTAL(2,'PECCD All'!S$15:S$248)=0,"",SUBTOTAL(1,'PECCD All'!S$15:S$248)) -> 5.241176471 | T250: =IF(SUBTOTAL(2,'PECCD All'!T$15:T$248)=0,"",SUBTOTAL(1,'PECCD All'!T$15:T$248)) -> 13.3875 | U250: =IF(SUBTOTAL(2,'PECCD All'!U$15:U$248)=0,"",SUBTOTAL(1,'PECCD All'!U$15:U$248)) -> 12.01818182 | V250: =IF(SUBTOTAL(2,'PECCD All'!V$15:V$248)=0,"",SUBTOTAL(1,'PECCD All'!V$15:V$248)) -> 3.324418605 | Z250: =IF(SUBTOTAL(2,'PECCD All'!Z$15:Z$248)=0,"",SUBTOTAL(1,'PECCD All'!Z$15:Z$248)) ->  | AA250: =IF(SUBTOTAL(2,'PECCD All'!AA$15:AA$248)=0,"",SUBTOTAL(1,'PECCD All'!AA$15:AA$248)) -> 0.1277777778 | AB250: =IF(SUBTOTAL(2,'PECCD All'!AB$15:AB$248)=0,"",SUBTOTAL(1,'PECCD All'!AB$15:AB$248)) -> 0.1333333333 | AC250: =IF(SUBTOTAL(2,'PECCD All'!AC$15:AC$248)=0,"",SUBTOTAL(1,'PECCD All'!AC$15:AC$248)) -> 2.647311828
A251: MAX | F251: =IF(SUBTOTAL(2,'PECCD All'!F$15:F$248)=0,"",SUBTOTAL(4,'PECCD All'!F$15:F$248)) -> 2 | G251: =IF(SUBTOTAL(2,'PECCD All'!G$15:G$248)=0,"",SUBTOTAL(4,'PECCD All'!G$15:G$248)) -> 2.5 | H251: =IF(SUBTOTAL(2,'PECCD All'!H$15:H$248)=0,"",SUBTOTAL(4,'PECCD All'!H$15:H$248)) -> 0.8 | I251: =IF(SUBTOTAL(2,'PECCD All'!I$15:I$248)=0,"",SUBTOTAL(4,'PECCD All'!I$15:I$248)) -> 3.7 | J251: =IF(SUBTOTAL(2,'PECCD All'!J$15:J$248)=0,"",SUBTOTAL(4,'PECCD All'!J$15:J$248)) -> 3.7 | K251: =IF(SUBTOTAL(2,'PECCD All'!K$15:K$248)=0,"",SUBTOTAL(4,'PECCD All'!K$15:K$248)) -> 7.4 | L251: =IF(SUBTOTAL(2,'PECCD All'!L$15:L$248)=0,"",SUBTOTAL(4,'PECCD All'!L$15:L$248)) -> 1.4 | M251: =IF(SUBTOTAL(2,'PECCD All'!M$15:M$248)=0,"",SUBTOTAL(4,'PECCD All'!M$15:M$248)) -> 2.7 | N251: =IF(SUBTOTAL(2,'PECCD All'!N$15:N$248)=0,"",SUBTOTAL(4,'PECCD All'!N$15:N$248)) ->  | O251: =IF(SUBTOTAL(2,'PECCD All'!O$15:O$248)=0,"",SUBTOTAL(4,'PECCD All'!O$15:O$248)) ->  | P251: =IF(SUBTOTAL(2,'PECCD All'!P$15:P$248)=0,"",SUBTOTAL(4,'PECCD All'!P$15:P$248)) -> 9.8 | Q251: =IF(SUBTOTAL(2,'PECCD All'!Q$15:Q$248)=0,"",SUBTOTAL(4,'PECCD All'!Q$15:Q$248)) -> 17.5 | R251: =IF(SUBTOTAL(2,'PECCD All'!R$15:R$248)=0,"",SUBTOTAL(4,'PECCD All'!R$15:R$248)) -> 7.7 | S251: =IF(SUBTOTAL(2,'PECCD All'!S$15:S$248)=0,"",SUBTOTAL(4,'PECCD All'!S$15:S$248)) -> 10.6 | T251: =IF(SUBTOTAL(2,'PECCD All'!T$15:T$248)=0,"",SUBTOTAL(4,'PECCD All'!T$15:T$248)) -> 18 | U251: =IF(SUBTOTAL(2,'PECCD All'!U$15:U$248)=0,"",SUBTOTAL(4,'PECCD All'!U$15:U$248)) -> 12.7 | V251: =IF(SUBTOTAL(2,'PECCD All'!V$15:V$248)=0,"",SUBTOTAL(4,'PECCD All'!V$15:V$248)) -> 5.5 | Z251: =IF(SUBTOTAL(2,'PECCD All'!Z$15:Z$248)=0,"",SUBTOTAL(4,'PECCD All'!Z$15:Z$248)) ->  | AA251: =IF(SUBTOTAL(2,'PECCD All'!AA$15:AA$248)=0,"",SUBTOTAL(4,'PECCD All'!AA$15:AA$248)) -> 0.5 | AB251: =IF(SUBTOTAL(2,'PECCD All'!AB$15:AB$248)=0,"",SUBTOTAL(4,'PECCD All'!AB$15:AB$248)) -> 0.6 | AC251: =IF(SUBTOTAL(2,'PECCD All'!AC$15:AC$248)=0,"",SUBTOTAL(4,'PECCD All'!AC$15:AC$248)) -> 5.5
A252: MIN | F252: =IF(SUBTOTAL(2,'PECCD All'!F$15:F$248)=0,"",SUBTOTAL(5,'PECCD All'!F$15:F$248)) -> 0.9 | G252: =IF(SUBTOTAL(2,'PECCD All'!G$15:G$248)=0,"",SUBTOTAL(5,'PECCD All'!G$15:G$248)) -> 0.3 | H252: =IF(SUBTOTAL(2,'PECCD All'!H$15:H$248)=0,"",SUBTOTAL(5,'PECCD All'!H$15:H$248)) -> 0.5 | I252: =IF(SUBTOTAL(2,'PECCD All'!I$15:I$248)=0,"",SUBTOTAL(5,'PECCD All'!I$15:I$248)) -> 0.8 | J252: =IF(SUBTOTAL(2,'PECCD All'!J$15:J$248)=0,"",SUBTOTAL(5,'PECCD All'!J$15:J$248)) -> 1 | K252: =IF(SUBTOTAL(2,'PECCD All'!K$15:K$248)=0,"",SUBTOTAL(5,'PECCD All'!K$15:K$248)) -> 0.4 | L252: =IF(SUBTOTAL(2,'PECCD All'!L$15:L$248)=0,"",SUBTOTAL(5,'PECCD All'!L$15:L$248)) -> 1.2 | M252: =IF(SUBTOTAL(2,'PECCD All'!M$15:M$248)=0,"",SUBTOTAL(5,'PECCD All'!M$15:M$248)) -> 0.6 | N252: =IF(SUBTOTAL(2,'PECCD All'!N$15:N$248)=0,"",SUBTOTAL(5,'PECCD All'!N$15:N$248)) ->  | O252: =IF(SUBTOTAL(2,'PECCD All'!O$15:O$248)=0,"",SUBTOTAL(5,'PECCD All'!O$15:O$248)) ->  | P252: =IF(SUBTOTAL(2,'PECCD All'!P$15:P$248)=0,"",SUBTOTAL(5,'PECCD All'!P$15:P$248)) -> 2 | Q252: =IF(SUBTOTAL(2,'PECCD All'!Q$15:Q$248)=0,"",SUBTOTAL(5,'PECCD All'!Q$15:Q$248)) -> 6.5 | R252: =IF(SUBTOTAL(2,'PECCD All'!R$15:R$248)=0,"",SUBTOTAL(5,'PECCD All'!R$15:R$248)) -> 7.7 | S252: =IF(SUBTOTAL(2,'PECCD All'!S$15:S$248)=0,"",SUBTOTAL(5,'PECCD All'!S$15:S$248)) -> 3 | T252: =IF(SUBTOTAL(2,'PECCD All'!T$15:T$248)=0,"",SUBTOTAL(5,'PECCD All'!T$15:T$248)) -> 8.3 | U252: =IF(SUBTOTAL(2,'PECCD All'!U$15:U$248)=0,"",SUBTOTAL(5,'PECCD All'!U$15:U$248)) -> 11.2 | V252: =IF(SUBTOTAL(2,'PECCD All'!V$15:V$248)=0,"",SUBTOTAL(5,'PECCD All'!V$15:V$248)) -> 0.5 | Z252: =IF(SUBTOTAL(2,'PECCD All'!Z$15:Z$248)=0,"",SUBTOTAL(5,'PECCD All'!Z$15:Z$248)) ->  | AA252: =IF(SUBTOTAL(2,'PECCD All'!AA$15:AA$248)=0,"",SUBTOTAL(5,'PECCD All'!AA$15:AA$248)) -> 0 | AB252: =IF(SUBTOTAL(2,'PECCD All'!AB$15:AB$248)=0,"",SUBTOTAL(5,'PECCD All'!AB$15:AB$248)) -> 0 | AC252: =IF(SUBTOTAL(2,'PECCD All'!AC$15:AC$248)=0,"",SUBTOTAL(5,'PECCD All'!AC$15:AC$248)) -> 0.3
A253: LAYER COEF. | F253: =IF(F$14="","",_xlfn.XLOOKUP(F$14,Variables!$A$2:$A$44,_xlfn.XLOOKUP($H$10,Variables!$A$1:$E$1,Variables!$A$2:$E$44))) -> 0.25 | G253: =IF(G$14="","",_xlfn.XLOOKUP(G$14,Variables!$A$2:$A$44,_xlfn.XLOOKUP($H$10,Variables!$A$1:$E$1,Variables!$A$2:$E$44))) -> 0 | H253: =IF(H$14="","",_xlfn.XLOOKUP(H$14,Variables!$A$2:$A$44,_xlfn.XLOOKUP($H$10,Variables!$A$1:$E$1,Variables!$A$2:$E$44))) -> 0.17 | I253: =IF(I$14="","",_xlfn.XLOOKUP(I$14,Variables!$A$2:$A$44,_xlfn.XLOOKUP($H$10,Variables!$A$1:$E$1,Variables!$A$2:$E$44))) -> 0.25 | J253: =IF(J$14="","",_xlfn.XLOOKUP(J$14,Variables!$A$2:$A$44,_xlfn.XLOOKUP($H$10,Variables!$A$1:$E$1,Variables!$A$2:$E$44))) -> 0.25 | K253: =IF(K$14="","",_xlfn.XLOOKUP(K$14,Variables!$A$2:$A$44,_xlfn.XLOOKUP($H$10,Variables!$A$1:$E$1,Variables!$A$2:$E$44))) -> 0.25 | L253: =IF(L$14="","",_xlfn.XLOOKUP(L$14,Variables!$A$2:$A$44,_xlfn.XLOOKUP($H$10,Variables!$A$1:$E$1,Variables!$A$2:$E$44))) -> 0.11 | M253: =IF(M$14="","",_xlfn.XLOOKUP(M$14,Variables!$A$2:$A$44,_xlfn.XLOOKUP($H$10,Variables!$A$1:$E$1,Variables!$A$2:$E$44))) -> 0.2 | N253: =IF(N$14="","",_xlfn.XLOOKUP(N$14,Variables!$A$2:$A$44,_xlfn.XLOOKUP($H$10,Variables!$A$1:$E$1,Variables!$A$2:$E$44))) ->  | O253: =IF(O$14="","",_xlfn.XLOOKUP(O$14,Variables!$A$2:$A$44,_xlfn.XLOOKUP($H$10,Variables!$A$1:$E$1,Variables!$A$2:$E$44))) ->  | Q253: =IF(Q$14="","",_xlfn.XLOOKUP(Q$14,Variables!$F$2:$F$30,_xlfn.XLOOKUP($H$10,Variables!$F$1:$J$1,Variables!$F$2:$J$30))) -> 0.18 | R253: =IF(R$14="","",_xlfn.XLOOKUP(R$14,Variables!$F$2:$F$30,_xlfn.XLOOKUP($H$10,Variables!$F$1:$J$1,Variables!$F$2:$J$30))) -> UNKW | S253: =IF(S$14="","",_xlfn.XLOOKUP(S$14,Variables!$F$2:$F$30,_xlfn.XLOOKUP($H$10,Variables!$F$1:$J$1,Variables!$F$2:$J$30))) -> 0.16 | T253: =IF(T$14="","",_xlfn.XLOOKUP(T$14,Variables!$F$2:$F$30,_xlfn.XLOOKUP($H$10,Variables!$F$1:$J$1,Variables!$F$2:$J$30))) -> 0.18 | U253: 0.08
A255: Notes:
A256: 1. The data presented on this table is specific only at the locations cored at the time of the investigation. Should questions arise regarding the pavement composition, it is incumbent upon those raising the question to perform additional exploration as necessary.
A257: 2. Mile posts are approximate based on field recorded measurements using a Distance Measuring Instrument (DMI) or a GPS unit.
A258: 3. Stabilization thickness was checked on all coring locations. For pavement design, assume 12 inches of thickness for stabilization.
A259: 4. The cross slope is approximate and measured in the center of the lane.
A260: 5. A blank cell indicates measurement was not recorded.
A261: 6. A value of "UNK" indicates material was encountered but the total thickness was not determined.
A263: Lane Designations - Decreasing MP | E263: Lane Designations - Increasing MP | K263: Lane Type | Q263: Crack Type | S263: Crack Rating | Y263: Extent | AD263: Pavement Condition
A264: OL/IL - Outside/Inside Shoulder | E264: OR/IR - Outside/Inside Shoulder | K264: ML - Mainline | M264: S - Shoulder | Q264: A - Alligator | S264: Class IB - Hairline cracks that are ≤ 1/8 inch wide | Y264: L - Light | AD264: G - Good
A265: L1 - 1st Lane Left of Centerline | E265: R1 - 1st Lane Right of Centerline | K265: TL - Turn Lane | M265: SS - Side Street | Q265: B - Block | S265: Class II - Cracks > than 1/8 inch and ≤ 1/4 inch | Y265: M - Moderate | AD265: F - Fair
A266: LL/LR - Left/Right Turn Lane | E266: RL/RR - Left/Right Turn Lane | K266: CO - Crossover | M266: BR - Bridge Approach/Departure | Q266: C - Combination | S266: Class III - Cracks > 1/4 inch | Y266: S - Severe | AD266: P - Poor

Sheet Variables
A1: Pavement Layer Codes | B1: Description | C1: Good | D1: Fair | E1: Poor | F1: Base Layer Codes | G1: Description | H1: Good | I1: Fair | J1: Poor | K1: All Cores | L1: All Cores | M1: Overall Condition
A2: ARMI | B2: Asphalt Rubber Membrane Interlayer | C2: 0 | D2: 0 | E2: 0 | F2: ABC-1 | G2: ABC similar to SAHM and SBRM | H2: 0.17 | I2: 0.14 | J2: 0.1 | K2: Mainline | L2: ML | M2: Good
A3: BIND | B3: Asphalt Binder Course | C3: 0.25 | D3: 0.2 | E3: 0.15 | F3: ABC-2 | G3: ABC similar to SAHM and SBRM | H3: 0.2 | I3: 0.16 | J3: 0.12 | K3: Shoulders | L3: S | M3: Fair
A4: BRCK | B4: Brick Pavers | C4: UNKW | D4: UNKW | E4: UNKW | F4: ABC-3 | G4: ABC similar to S-II and S-I | H4: 0.25 | I4: 0.2 | J4: 0.15 | K4: Turn Lanes | L4: TL | M4: Poor
A5: CONC | B5: Portland Cement Concrete | C5: UNKW | D5: UNKW | E5: UNKW | F5: B-12.5 | G5: Type B-12.5 | H5: 0.25 | I5: 0.2 | J5: 0.15 | K5: Side Street | L5: SS | M5: =IF('PECCD All'!H10="Good",3,IF('PECCD All'!H10="Fair",4,5)) -> 4
A6: CRL | B6: Crack Relief Layer | C6: 0 | D6: 0 | E6: 0 | F6: BRCK | G6: Brick Pavers (Clay or Asphalt) | H6: UNKW | I6: UNKW | J6: UNKW | K6: Bridge Approach/Departure | L6: BR
A7: FAB | B7: Pavement Overlay Fabric | C7: 0 | D7: 0 | E7: 0 | F7: CONC | G7: Concrete | H7: UNKW | I7: UNKW | J7: UNKW | K7: Crossovers | L7: CO
A8: FC | B8: Friction Course | C8: UNKW | D8: UNKW | E8: UNKW | F8: CTSG | G8: Cement Treated (300 psi) | H8: 0.12 | I8: 0.12 | J8: 0.12 | K8: Gore Area | L8: GO
A9: FC1 | B9: Friction Course 1 | C9: 0.17 | D9: 0.15 | E9: 0.12 | F9: ECON | G9: Econocrete Base | H9: 0.12 | I9: 0.12 | J9: 0.12
A10: FC2 | B10: Friction Course 2 | C10: 0 | D10: 0 | E10: 0 | F10: FDR | G10: Full Depth Reclamation | H10: 0.2 | I10: 0.2 | J10: 0.2
A11: FC3 | B11: Friction Course 3 | C11: 0.2 | D11: 0.17 | E11: 0.15 | F11: GRAG | G11: Graded Aggregate (LBR 100) | H11: 0.15 | I11: 0.15 | J11: 0.15
A12: FC4 | B12: Friction Course 4 | C12: 0.17 | D12: 0.15 | E12: 0.12 | F12: GRAV | G12: Gravel & Stone | H12: UNKW | I12: UNKW | J12: UNKW
A13: FC5 | B13: Friction Course 5 | C13: 0 | D13: 0 | E13: 0 | F13: LR | G13: Limerock (LBR 100) | H13: 0.18 | I13: 0.18 | J13: 0.18
A14: FC6 | B14: Friction Course 6 | C14: 0.34 | D14: 0.25 | E14: 0.15 | F14: LRST | G14: Limerock Stab. (LBR 70) | H14: 0.12 | I14: 0.12 | J14: 0.12
A15: FC9.5 | B15: Friction Course 9.5 mm | C15: 0.34 | D15: 0.25 | E15: 0.15 | F15: LTSG | G15: Lime Treated | H15: 0.08 | I15: 0.08 | J15: 0.08
A16: FC12.5 | B16: Friction Course 12.5 mm | C16: 0.34 | D16: 0.25 | E16: 0.15 | F16: MARL | G16: Marl | H16: UNKW | I16: UNKW | J16: UNKW
A17: S | B17: Type S Asphaltic Concrete | C17: 0.34 | D17: 0.25 | E17: 0.15 | F17: NONE | G17: None | H17: 0 | I17: 0 | J17: 0
A18: SAHM | B18: Sand Asphalt Hot Mix | C18: 0.13 | D18: 0.11 | E18: 0.08 | F18: RAP | G18: Reclaimed Asphalt Pavement Base | H18: UNKW | I18: UNKW | J18: UNKW
A19: SP1C | B19: 9.5mm Coarse Graded | C19: 0.34 | D19: 0.25 | E19: 0.15 | F19: RCA | G19: Recycled Concrete Aggregate (LBR 150) | H19: 0.18 | I19: 0.18 | J19: 0.18
A20: SP1F | B20: 9.5mm Fine Graded | C20: 0.34 | D20: 0.25 | E20: 0.15 | F20: SAHM | G20: Sand Asphalt Hot Mix | H20: 0.13 | I20: 0.11 | J20: 0.08
A21: SP2C | B21: 12.5mm Coarse Graded | C21: 0.34 | D21: 0.25 | E21: 0.15 | F21: SCEM 300 | G21: Soil Cement (300 psi) | H21: 0.15 | I21: 0.15 | J21: 0.15
A22: SP2F | B22: 12.5mm Fine Graded | C22: 0.34 | D22: 0.25 | E22: 0.15 | F22: SCEM 500 | G22: Soil Cement (500 psi) | H22: 0.2 | I22: 0.2 | J22: 0.2
A23: SP3C | B23: 19.0mm Coarse Graded | C23: 0.34 | D23: 0.25 | E23: 0.15 | F23: SCLY | G23: Sand Clay (LBR 75) | H23: 0.12 | I23: 0.12 | J23: 0.12
A24: SP3F | B24: 19.0mm Fine Graded | C24: 0.34 | D24: 0.25 | E24: 0.15 | F24: SHBR | G24: Bank Run Shell (LBR 100) | H24: 0.18 | I24: 0.18 | J24: 0.18
A25: SP9.5 | B25: Structural Course 9.5mm | C25: 0.34 | D25: 0.25 | E25: 0.15 | F25: SHCC | G25: Cemented Coquina (LBR 100) | H25: 0.18 | I25: 0.18 | J25: 0.18
A26: SP12.5 | B26: Structural Course 12.5mm | C26: 0.34 | D26: 0.25 | E26: 0.15 | F26: SHEL | G26: Shell Rock (LBR 100) | H26: 0.18 | I26: 0.18 | J26: 0.18
A27: ST | B27: Surface Treatment | C27: 0 | D27: 0 | E27: 0 | F27: SHST | G27: Shell Stab. (LBR 70) | H27: 0.1 | I27: 0.1 | J27: 0.1
A28: S1 | B28: Type S-I Asphaltic Concrete | C28: 0.34 | D28: 0.25 | E28: 0.15 | F28: ST30 | G28: Type B Stab. (LBR 30) | H28: 0.06 | I28: 0.06 | J28: 0.06
A29: S2 | B29: Type S-II Asphaltic Concrete | C29: 0.34 | D29: 0.25 | E29: 0.15 | F29: ST40 | G29: Type B Stab. (LBR 40) | H29: 0.08 | I29: 0.08 | J29: 0.08
A30: S3 | B30: Type S-III Asphaltic Concrete | C30: 0.34 | D30: 0.25 | E30: 0.15 | F30: STC | G30: Type C Stab. | H30: 0.06 | I30: 0.06 | J30: 0.06
A31: T1 | B31: Type I Asphaltic Concrete | C31: 0.3 | D31: 0.23 | E31: 0.15
A32: T2 | B32: Type II Asphaltic Concrete | C32: 0.17 | D32: 0.15 | E32: 0.12
A33: T3 | B33: Type III Asphaltic Concrete | C33: 0.25 | D33: 0.2 | E33: 0.15
A34: UNIM | B34: Unimproved Surface | C34: UNKW | D34: UNKW | E34: UNKW
A35: UNKW | B35: Unknown | C35: UNKW | D35: UNKW | E35: UNKW
A36: WC | B36: Wearing Course | C36: UNKW | D36: UNKW | E36: UNKW
A37: WC1 | B37: Wearing Course 1 | C37: UNKW | D37: UNKW | E37: UNKW
A38: WC2 | B38: Wearing Course 2 | C38: UNKW | D38: UNKW | E38: UNKW
A39: WC3 | B39: Wearing Course 3 | C39: UNKW | D39: UNKW | E39: UNKW
A40: WC4 | B40: Wearing Course 4 | C40: UNKW | D40: UNKW | E40: UNKW
A41: WC5 | B41: Wearing Course 5 | C41: UNKW | D41: UNKW | E41: UNKW
A42: WC6 | B42: Wearing Course 6 | C42: UNKW | D42: UNKW | E42: UNKW
A43: WC7 | B43: Wearing Course 7 | C43: UNKW | D43: UNKW | E43: UNKW
A44: WC8 | B44: Wearing Course 8 | C44: UNKW | D44: UNKW | E44: UNKW
